[Event "13th Palmanova Festival A 2024"]
[Site "Palmanova"]
[Date "2024.12.28"]
[Round "2.1"]
[White "Solomon, Kenny"]
[Black "Martinovici, Ilia"]
[Result "1/2-1/2"]
[ECO "D37"]
[WhiteElo "2277"]
[BlackElo "2473"]
[Annotator "TA"]
[PlyCount "84"]
[EventDate "2024.12.27"]
[EventCountry "ITA"]
[SourceTitle "playchess.com"]
[Source "ChessBase"]
[SourceQuality "1"]
[TimeControl "6000+30"]

{[%evp 9,84,18,18,18,27,32,31,27,38,31,27,30,31,32,31,29,33,29,26,21,46,43,39,45,47,42,54,54,69,64,68,64,55,56,90,79,81,86,84,83,104,85,86,85,83,83,108,91,89,89,97,93,86,85,69,67,67,75,79,60,58,75,52,56,55,72,93,85,85,71,64,0,86,0,62,64,64]} 1. d4 {[%emt 0:04:32]} d5 {[%emt 0:05:10]} 2. Nf3 {[%emt 0:00:12]} e6 {[%emt 0:00:11]} 3. c4 {[%emt 0:00:12]} a6 {[%emt 0:00:08]} 4. cxd5 {[%emt 0:06:57]} exd5 {[%emt 0:00:13]} 5. Nc3 {[%emt 0:00:40]} Nf6 {[%emt 0:00:06]} 6. Bg5 {[%emt 0:00:04]} Be6 {[%emt 0:00:04]} 7. e3 {[%emt 0:00:03]} Nbd7 {[%emt 0:00:03]} 8. Bd3 {[%emt 0:00:05]} Bd6 {[%emt 0:00:28]} 9. h3 {[%emt 0:02:17]} c6 {[%emt 0:00:14]} 10. O-O {[%emt 0:01:16]} O-O {[%emt 0:03:58]} 11. Bf4 {[%emt 0:03:35]} Qb8 {[%emt 0:00:08]} 12. Bxd6 {[%emt 0:02:43]} Qxd6 {[%emt 0:00:05]} 13. Qb3 {[%emt 0:00:06]} Rfc8 {[%emt 0:08:33]} 14. Rfc1 {[%emt 0:00:51]} (14. Qxb7 $2 Rcb8 $19) 14... c5 {[%emt 0:13:05]} 15. dxc5 {[%emt 0:00:27]} (15. Qxb7 $2 {is the wrong capture.} Rcb8 $19) 15... Nxc5 {[%emt 0:00:09]} 16. Qb4 {[%emt 0:20:56]} b5 {[%emt 0:05:56]} 17. Ne2 {[%emt 0:15:49]} Nfe4 {[%emt 0:05:09]} 18. Qd4 {[%emt 0:08:16]} Nxd3 {[%emt 0:20:08]} 19. Qxd3 {[%emt 0:00:18]} Qb4 {[%emt 0:03:29]} 20. Qd4 {[%emt 0:20:39]} Rc4 {[%emt 0:02:25]} 21. Qe5 {[%emt 0:00:16]} Re8 {[%emt 0:21:47]} 22. b3 {[%emt 0:05:33]} f6 {[%emt 0:00:55]} 23. Qb2 {[%emt 0:04:11]} Rec8 {[%emt 0:01:26]} 24. Nfd4 {[%emt 0:04:53]} (24. Rab1 {simplifies} Rxc1+ 25. Rxc1 Rxc1+ 26. Qxc1 Qc5 27. Qe1) 24... Bd7 {[%emt 0:00:37]} 25. a3 {[%emt 0:01:03]} Rxc1+ {[%emt 0:00:26]} 26. Rxc1 {[%emt 0:00:02]} Rxc1+ {[%emt 0:00:56]} 27. Qxc1 {[%emt 0:00:02]} Qd6 {[%emt 0:00:05]} 28. Nf4 {[%emt 0:02:11]} Nc5 {[%emt 0:03:14]} 29. b4 {[%emt 0:03:04]} Na4 {[%emt 0:00:25]} 30. Nd3 {[%emt 0:01:36] Excellent horsemanship.} Nb6 {[%emt 0:00:40]} 31. Qc5 {[%emt 0:01:30]} Qxc5 {[%emt 0:00:01]} 32. Nxc5 $16 {[%emt 0:02:11][%mdl 4096] Endgame. KBN-KNN} Bc8 33. Nc6 {[%emt 0:00:00]} Kf7 {[%emt 0:01:06] Prevents Ne7} 34. Na7 {[%emt 0:00:00] White is more active.} Bd7 {[%emt 0:00:15]} 35. Nxa6 {[%emt 0:00:24] Strongly threatening Nc7.} Nc4 {[%emt 0:01:07]} 36. Nc5 {[%emt 0:00:27]} Be8 {[%emt 0:00:02]} 37. Nc8 {[%emt 0:00:09]} Nxa3 {[%emt 0:00:06]} 38. Nd6+ {[%emt 0:00:14]} Ke7 {[%emt 0:00:06]} 39. Nf5+ {[%emt 0:00:45]} Kf7 {[%emt 0:01:44]} 40. Nd6+ {[%emt 0:00:39]} Ke7 {[%emt 0:00:01]} 41. Nf5+ {[%emt 0:00:00]} Kf7 {[%emt 0:00:00]} 42. Nd4 {[%emt 0:00:00]} Ke7 {[%emt 0:00:00] Weighted Error Value: White=0.07 (flawless) /Black=0.05 (flawless) .  Inaccurate:     	---       	Black=1      OK:         	White=15    	Black=16     Best:        	---       	Black=5} 1/2-1/2

[Event "13th Palmanova Festival A 2024"]
[Site "Palmanova"]
[Date "2024.12.28"]
[Round "2.2"]
[White "Reza, Wojciech"]
[Black "Domalchuk-Jonasson, Aleksandr"]
[Result "0-1"]
[ECO "E32"]
[WhiteElo "2227"]
[BlackElo "2377"]
[Annotator "TA"]
[PlyCount "76"]
[EventDate "2024.12.27"]
[EventCountry "ITA"]
[SourceTitle "playchess.com"]
[Source "ChessBase"]
[SourceQuality "1"]
[TimeControl "6000+30"]

{[%evp 9,76,20,17,16,14,0,-2,0,24,0,39,39,29,29,38,36,54,45,72,56,49,49,77,82,91,70,78,72,65,60,58,24,54,46,53,60,51,2,32,0,100,92,102,0,0,0,0,0,45,0,78,78,170,16,17,17,145,127,277,237,331,298,353,222,206,-784,-785,-769,-757]} 1. d4 {[%emt 0:00:02]} Nf6 {[%emt 0:06:12]} 2. c4 {[%emt 0:00:27]} e6 {[%emt 0:00:13]} 3. Nc3 {[%emt 0:00:27]} Bb4 {[%emt 0:00:53]} 4. Qc2 {[%emt 0:02:53]} d6 {[%emt 0:03:34]} 5. e3 {[%emt 0:06:10]} O-O {[%emt 0:03:28]} 6. Bd3 {[%emt 0:07:25]} c5 {[%emt 0:02:23]} 7. a3 {[%emt 0:06:35]} Bxc3+ {[%emt 0:08:24]} 8. Qxc3 {[%emt 0:00:14] The position is equal.} b6 {[%emt 0:03:06]} 9. Ne2 {[%emt 0:03:41]} Bb7 {[%emt 0:01:38]} 10. O-O {[%emt 0:02:27]} Nbd7 {[%emt 0:00:26]} 11. b4 {[%emt 0:07:34]} Qe7 {[%emt 0:02:03]} 12. Bb2 {[%emt 0:05:00]} Rac8 {[%emt 0:03:35]} 13. dxc5 {[%emt 0:11:38]} dxc5 {[%emt 0:06:46]} 14. Rfd1 {[%emt 0:07:31]} Rfd8 {[%emt 0:02:00]} 15. Ng3 {[%emt 0:02:17]} (15. f3 {keeps more tension.} Ne8 16. b5 Qg5 17. Kh1) 15... Qf8 {[%emt 0:06:21]} 16. b5 {[%emt 0:09:04]} a6 {[%emt 0:05:30]} 17. bxa6 {[%emt 0:01:37]} Bxa6 {[%emt 0:00:06]} 18. Rab1 {[%emt 0:00:23]} Bb7 {[%emt 0:06:57]} 19. Ba1 {[%emt 0:02:51]} Ra8 {[%emt 0:00:47]} 20. h4 {[%emt 0:00:42]} Ra6 {[%emt 0:08:08]} (20... Ne8 {is more complex.} 21. Nh5 f6 22. Bc2 Qe7) 21. Rd2 {[%emt 0:02:09]} Raa8 {[%emt 0:24:32]} 22. Rbd1 {[%emt 0:01:24]} Qe7 {[%emt 0:00:45] [#]} 23. Ne4 {[%emt 0:20:07]} Kf8 {[%emt 0:01:25]} (23... Bc6 $5) 24. Bc2 {[%emt 0:05:00][%cal Od2d7]} Bc6 {[%emt 0:07:58]} (24... Nxe4 $2 25. Qxg7+ Ke8 26. Rxd7 Rxd7 27. Qh8+ (27. Qxh7 $2 Rxd1+ 28. Bxd1 f6 $19) 27... Qf8 28. Qxf8+ (28. Qxh7 $2 Rxd1+ 29. Bxd1 Nd6 $19) 28... Kxf8 29. Rxd7 Rxa3 30. Be5 $18 (30. Bb2 Ra2 $18)) (24... Bxe4 $11 25. Bxe4 Nxe4 26. Qxg7+ Ke8 27. Rxd7 Rxd7 28. Qh8+ Qf8 29. Qxf8+ Kxf8 30. Rxd7 Rxa3) 25. Nd6 {[%emt 0:01:55]} Kg8 {[%emt 0:02:11] [#]} 26. Be4 {[%emt 0:02:24]} Bxe4 $14 {[%emt 0:01:32]} 27. Nxe4 {[%emt 0:00:04][%cal Od2d7]} Ne8 {[%emt 0:02:16]} 28. h5 $36 {[%emt 0:01:10][%mdl 2048] White is more active.} h6 {[%emt 0:00:35]} 29. Qb3 {[%emt 0:01:12]} f5 {[%emt 0:00:28]} (29... Ndf6 $11 30. Nxf6+ (30. Qxb6 Rxd2 31. Nxd2 Rd8 $11) 30... Nxf6) 30. Nd6 $16 {[%emt 0:00:28] aiming for Nb7.} Nef6 {[%emt 0:00:35] [#]} (30... Nf8 $16 31. Nxe8 (31. Qxb6 Nxd6 32. Rxd6 Rxd6 $16) 31... Rxe8) 31. Bxf6 $2 {[%emt 0:00:18]} (31. Qb5 $1 $18 {Threatens to win with Nb7.} Rab8 32. Qc6) 31... Nxf6 $11 {[%emt 0:00:30]} 32. Qxb6 {[%emt 0:00:05][%cal Od6f5] And now Nxf5! would win.} Rd7 {[%emt 0:00:38]} (32... Qa7 $11 33. Qc6 Qxa3) 33. Qxc5 {[%emt 0:00:49]} Rad8 {[%emt 0:00:30]} (33... Rda7 $16 {is a better defense.} 34. Qd4 Rxa3) 34. Qb4 {[%emt 0:00:18]} Ng4 {[%emt 0:00:32]} 35. c5 {[%emt 0:00:54] Strongly threatening c6.} Qh4 {[%emt 0:00:17]} 36. Qf4 {[%emt 0:00:18] Inhibits Qh2+.} e5 {[%emt 0:00:43]} 37. Nxf5 $4 {[%emt 0:00:56][%mdl 8192]} ({And not} 37. Qxf5 Qh2+ 38. Kf1 Nxe3+ 39. fxe3 Rf8 $11) (37. Qf3 $18 Qh2+ 38. Kf1 Qxh5 39. Ke2 (39. Qxf5 $2 {is the wrong capture.} Qxf5 40. Nxf5 Rxd2 $19)) 37... exf4 $19 {[%emt 0:00:30]} 38. Nxh4 {[%emt 0:00:25]} Rxd2 {[%emt 0:00:04] What a bad dream for White.   Weighted Error Value: White=0.42/Black=0.32.  Missed win:     	White=1     	---        Mistake:       	White=3     	Black=5      Inaccurate:     	White=4     	Black=6      OK:         	White=8     	Black=8      Best:        	White=2     	Black=3} 0-1

[Event "13th Palmanova Festival A 2024"]
[Site "Palmanova"]
[Date "2024.12.28"]
[Round "2.3"]
[White "Dobrovoljc, Vid"]
[Black "Javornik, Nik"]
[Result "1-0"]
[ECO "A38"]
[WhiteElo "2365"]
[BlackElo "2300"]
[Annotator "TA"]
[PlyCount "55"]
[EventDate "2024.12.27"]
[EventCountry "ITA"]
[SourceTitle "playchess.com"]
[Source "ChessBase"]
[SourceQuality "1"]
[TimeControl "6000+30"]

{[%evp 13,55,0,13,24,13,24,16,15,12,20,18,24,25,23,20,24,28,10,19,16,14,-11,-4,-5,-3,0,9,9,54,47,129,137,128,110,282,275,375,352,1125,239,1048,1085,29993,29994]} 1. Nf3 {[%emt 0:09:17]} c5 {[%emt 0:00:06]} 2. c4 {[%emt 0:00:22]} g6 {[%emt 0:00:29]} 3. Nc3 {[%emt 0:00:57]} Bg7 {[%emt 0:00:10]} 4. g3 {[%emt 0:00:07]} Nf6 {[%emt 0:01:51]} 5. Bg2 {[%emt 0:00:50]} O-O {[%emt 0:00:06]} 6. O-O {[%emt 0:00:31]} Nc6 {[%emt 0:00:06]} 7. d3 {[%emt 0:05:15]} e6 {[%emt 0:09:35]} 8. d4 {[%emt 0:37:15]} cxd4 {[%emt 0:11:54]} 9. Nxd4 {[%emt 0:01:22]} d5 {[%emt 0:00:07]} 10. cxd5 {[%emt 0:21:27]} Nxd4 {[%emt 0:00:05]} 11. Qxd4 {[%emt 0:00:03]} Nxd5 {[%emt 0:00:06]} 12. Qc4 {[%emt 0:00:04]} Nxc3 {[%emt 0:01:21]} 13. bxc3 {[%emt 0:00:03]} Qa5 {[%emt 0:06:15] Prevents Ba3} 14. Rb1 {[%emt 0:07:02]} Rb8 {[%emt 0:08:17]} 15. Rb5 {[%emt 0:19:27] Dodges b6} Qxc3 {[%emt 0:21:20]} 16. Qxc3 {[%emt 0:00:05]} Bxc3 {[%emt 0:00:02]} 17. Bf4 {[%emt 0:00:40] [#]} e5 $1 {[%emt 0:00:48]} 18. Bxe5 {[%emt 0:00:13]} Bxe5 {[%emt 0:00:07]} 19. Rxe5 {[%emt 0:00:03]} b6 {[%emt 0:03:33][%cal Bb7b6,Bb6b5,Bb5b4][%mdl 32]} 20. Re7 {[%emt 0:01:29]} a5 {[%emt 0:00:01]} 21. Bd5 {[%emt 0:00:17] Prevents Be6} Kg7 {[%emt 0:00:15]} ({Black should play} 21... Bh3 $14) 22. Rc1 $16 {[%emt 0:00:38]} Kf6 {[%emt 0:00:15]} 23. Rcc7 {[%emt 0:00:53][%cal Rd5f7] White is much more active.} h5 $2 {[%emt 0:07:39]} (23... Be6 $16 24. Bxe6 fxe6) 24. Bxf7 $18 {[%emt 0:01:21]} (24. Rxf7+ Rxf7 25. Bxf7 (25. Rxf7+ Ke5 $16) 25... Rb7 26. Rxc8 Kxf7 $16) 24... b5 {[%emt 0:01:29]} 25. f4 {[%emt 0:00:53]} a4 $2 {[%emt 0:02:30]} (25... Rb7 26. Rxb7 Bxb7 27. Rxb7 Rxf7 28. Rb6+ (28. Rxb5 a4 $18) 28... Kg7 29. Rxb5 a4) 26. h4 $2 {[%emt 0:01:21]} (26. Bd5 {Rf7+ would kill now.} g5 27. e4 gxf4 28. gxf4) 26... Rd8 $2 {[%emt 0:02:40]} (26... Rb6 27. Kf2 Be6 28. Bxe6 Rxe6) 27. e4 {[%emt 0:00:32] Bd5 is the strong threat.} b4 {[%emt 0:00:31]} 28. Bc4 {[%emt 0:00:44]} 1-0

[Event "13th Palmanova Festival A 2024"]
[Site "Palmanova"]
[Date "2024.12.28"]
[Round "2.4"]
[White "Mizzi, Jack"]
[Black "Bettalli, Francesco"]
[Result "0-1"]
[ECO "A81"]
[WhiteElo "2097"]
[BlackElo "2359"]
[Annotator "TA"]
[PlyCount "68"]
[EventDate "2024.12.27"]
[EventCountry "ITA"]
[SourceTitle "playchess.com"]
[Source "ChessBase"]
[SourceQuality "1"]
[TimeControl "6000+30"]

{[%evp 9,68,32,34,29,36,29,49,34,38,16,18,0,18,-14,-8,0,-9,-47,-33,-74,-81,-77,-76,-88,-31,-31,-43,-125,-125,-114,-123,-103,-95,-104,-100,-108,-107,-116,-103,-177,-134,-549,-533,-550,-550,-543,-542,-29974,-416,-421,-391,-396,-396,-513,-559,-527,-512,-994,-970,-5097,-5052]} 1. d4 {[%emt 0:00:03]} f5 {[%emt 0:07:53]} 2. Nf3 {[%emt 0:00:22]} Nf6 {[%emt 0:00:34]} 3. g3 {[%emt 0:01:25]} e6 {[%emt 0:00:08]} 4. Bg2 {[%emt 0:00:27]} Be7 {[%emt 0:00:16]} 5. O-O {[%emt 0:00:54]} Ne4 {[%emt 0:00:19]} 6. c4 {[%emt 0:07:20]} d5 {[%emt 0:00:08]} 7. Qc2 {[%emt 0:03:53]} c6 {[%emt 0:00:42]} 8. Nc3 {[%emt 0:03:04]} Nd7 {[%emt 0:00:43]} 9. cxd5 {[%emt 0:08:16]} exd5 {[%emt 0:00:42]} 10. Bf4 {[%emt 0:02:44][%cal Oc3d5]} Bf6 {[%emt 0:01:22]} 11. Ne5 {[%emt 0:05:34][%cal Oe5c6] and Nxc6! would now be decisive} g5 {[%emt 0:09:48]} 12. Nxe4 {[%emt 0:03:16]} fxe4 {[%emt 0:01:06]} 13. Nxd7 {[%emt 0:00:46]} (13. Nxc6 {looks sharper.} bxc6 14. Qxc6 gxf4 15. Qxa8 Nb6 16. Qxa7 Bxd4 17. Rad1) 13... gxf4 {[%emt 0:05:10]} (13... Qxd7 14. Be5 Bxe5 15. dxe5) 14. Ne5 {[%emt 0:12:18]} Bxe5 {[%emt 0:11:36]} 15. dxe5 {[%emt 0:00:10]} Qg5 {[%emt 0:00:27]} 16. Qc3 {[%emt 0:06:53]} O-O {[%emt 0:01:23]} ({Black should try} 16... Be6 $17 17. gxf4 Qxf4) 17. f3 $15 {[%emt 0:02:08]} e3 {[%emt 0:03:12]} 18. Rad1 {[%emt 0:04:30]} ({White should play} 18. gxf4 $1 $15 Rxf4 19. Qxe3) 18... fxg3 $17 {[%emt 0:05:39]} 19. hxg3 {[%emt 0:02:36]} Qxg3 {[%emt 0:00:09] ( -> ...Bh3)} 20. Qxe3 {[%emt 0:00:43]} Re8 $40 {[%emt 0:00:11][%mdl 128] Black is out for blood.} 21. Qf2 {[%emt 0:01:29]} Qxe5 {[%emt 0:01:31] Black is more active.} 22. e4 {[%emt 0:00:21]} dxe4 {[%emt 0:00:16]} 23. fxe4 {[%emt 0:00:49]} Be6 {[%emt 0:00:34][%cal Oe8f8] Against Qf7+} 24. Qh4 {[%emt 0:01:29]} (24. Rd3 $17 {keeps fighting.}) 24... Kh8 {[%emt 0:02:36]} 25. Rd7 $2 {[%emt 0:08:56][%mdl 8192]} (25. Qf6+ $17 Qxf6 26. Rxf6) 25... Bxd7 $19 {[%emt 0:02:00]} 26. Rf7 {[%emt 0:00:08][%csl Gf7][%cal Rh4h7] [#]} h5 $1 {[%emt 0:02:27]} 27. Rxd7 {[%emt 0:00:13]} Rg8 {[%emt 0:01:09]} (27... Qxb2 28. Qxh5+ Kg8 29. Qh7+ Kf8 30. Qf7#) 28. Re7 {[%emt 0:01:08]} Rg4 {[%emt 0:01:30]} ({Inferior is} 28... Qxb2 29. Qxh5#) (28... Qd4+ $142 29. Kh2 Rxg2+ (29... Qxb2 30. Qxh5#) 30. Kxg2 Rg8+ (30... Qxb2+ $2 31. Kh3 $19) 31. Kf3 Rf8+ (31... Qxb2 32. Qxh5#) 32. Kg2 Qd2+ (32... Qxb2+ $2 33. Kg1 $19) 33. Kh3 Rf3+ (33... Qxb2 34. Qxh5+ Kg8 35. Qh7#) 34. Qg3 Rxg3+ 35. Kxg3 Qg5+ (35... Qxb2 $2 36. Rf7 $19) 36. Kf3 Qf6+ (36... Qxe7 $2 37. b4 $19) 37. Ke3 Qxe7 38. e5 Qxe5+ 39. Kf3 h4 (39... Qxb2 {is a self mate.} 40. Kg3 Qe2 41. a4 Qe3+ 42. Kg2 h4 43. Kf1 h3 44. a5 Qd2 45. a6 h2 46. axb7 h1=Q#) 40. b3 h3 41. a4 h2 42. Kg2 Qe2+ 43. Kg3 h1=Q (43... h1=B 44. Kf4 Kg7 45. Kg3 Qe3+ 46. Kh4 Kg6 47. b4 Bg2 48. Kg4 Qg5#) 44. Kf4 Qh6+ 45. Kg3 Qhh2#) 29. Rxe5 {[%emt 0:00:37]} Rxh4 {[%emt 0:00:04] KRR-KRB} 30. Bf3 {[%emt 0:01:41]} Rg8+ {[%emt 0:01:03]} 31. Kf2 {[%emt 0:00:10]} Rh2+ {[%emt 0:00:06]} 32. Ke3 {[%emt 0:00:13]} Rg3 {[%emt 0:00:47][%cal Oh2h3]} 33. Rf5 {[%emt 0:02:26]} (33. Re8+ $142 Kg7 34. Kf4) 33... Rhh3 {[%emt 0:01:37][%cal Og3f3] ...Rxf3+! is the strong threat.} 34. Kf2 {[%emt 0:00:25] [#]} Rxf3+ $1 {[%emt 0:00:16]} 0-1

[Event "13th Palmanova Festival A 2024"]
[Site "Palmanova"]
[Date "2024.12.28"]
[Round "2.9"]
[White "Stankovic, Milos"]
[Black "Dolas, Aarush"]
[Result "1/2-1/2"]
[ECO "D00"]
[WhiteElo "2462"]
[BlackElo "2015"]
[Annotator "TA"]
[PlyCount "61"]
[EventDate "2024.12.27"]
[EventCountry "ITA"]
[SourceTitle "playchess.com"]
[Source "ChessBase"]
[SourceQuality "1"]
[TimeControl "6000+30"]

{[%evp 12,61,5,5,8,4,9,2,0,-5,-7,-7,-3,-18,-13,-26,-16,-18,0,0,0,-44,-44,-158,-159,-149,-129,-162,-157,-165,-171,-277,-104,-97,-89,-89,-89,-10,-104,-127,-121,-125,-134,-128,-82,-79,-79,-79,-82,-81,-82,-122]} 1. d4 {[%emt 0:00:18]} Nf6 {[%emt 0:00:08]} 2. Bg5 {[%emt 0:00:30]} d5 {[%emt 0:00:21]} 3. Bxf6 {[%emt 0:01:40]} exf6 {[%emt 0:00:10]} 4. e3 {[%emt 0:00:24]} g6 {[%emt 0:00:53]} 5. c4 {[%emt 0:01:23]} dxc4 {[%emt 0:01:24]} 6. Bxc4 {[%emt 0:00:30]} Bg7 {[%emt 0:00:25]} 7. Nc3 {[%emt 0:03:13]} O-O {[%emt 0:02:04]} 8. Nge2 {[%emt 0:09:54]} f5 {[%emt 0:04:40]} 9. h4 {[%emt 0:03:26]} c5 {[%emt 0:17:32]} 10. dxc5 {[%emt 0:11:24]} Nd7 {[%emt 0:04:04]} 11. h5 {[%emt 0:11:07]} Nxc5 {[%emt 0:02:20]} 12. hxg6 {[%emt 0:03:21]} (12. O-O Be6 13. Bxe6 Nxe6 14. Qa4) 12... hxg6 {[%emt 0:06:01]} 13. Nf4 {[%emt 0:07:14]} Be6 {[%emt 0:03:06]} (13... Bxc3+ 14. bxc3 Qxd1+ 15. Rxd1 Kg7) 14. Nxe6 {[%emt 0:02:47]} Nxe6 {[%emt 0:02:35]} (14... Qxd1+ 15. Rxd1 Bxc3+ 16. Ke2 fxe6 17. bxc3 Rfd8) 15. Qb3 {[%emt 0:15:02]} Nc5 $36 {[%emt 0:21:58][%mdl 2048] Black has the initiative.} 16. Qc2 {[%emt 0:03:29][%cal Og2g4]} Rc8 {[%emt 0:05:02][%cal Ob7b5]} (16... Qa5 {simplifies} 17. O-O Bxc3 18. Qxc3 Qxc3 19. bxc3 Rad8) 17. g4 {[%emt 0:10:10] [#]} b5 $1 $17 {[%emt 0:04:47]} (17... fxg4 $2 18. Qxg6 $18) 18. Rd1 {[%emt 0:03:14]} Qa5 {[%emt 0:05:00]} 19. Bd5 {[%emt 0:00:42]} b4 {[%emt 0:01:29]} ({Stronger than} 19... fxg4 20. Qxg6) 20. gxf5 {[%emt 0:02:10]} bxc3 {[%emt 0:01:32]} 21. b4 {[%emt 0:03:57]} (21. fxg6 $142 cxb2+ 22. Kf1) 21... Qa4 $2 {[%emt 0:01:56]} (21... Qxb4 $19 {has better winning chances.} 22. fxg6 Rfd8 23. gxf7+ Kf8) 22. Qxa4 {[%emt 0:00:41]} Nxa4 {[%emt 0:00:07]} 23. fxg6 {[%emt 0:00:11]} Rfd8 {[%emt 0:09:08]} 24. Bxf7+ {[%emt 0:02:14]} Kf8 {[%emt 0:00:14]} 25. Rxd8+ {[%emt 0:00:35]} Rxd8 {[%emt 0:00:07]} 26. Bb3 {[%emt 0:00:16] Dodges c2} Nb2 {[%emt 0:02:30]} 27. Rh5 {[%emt 0:02:06]} Rd6 {[%emt 0:02:30]} (27... Nd3+ $142 28. Kf1 Rd6 (28... Nxb4 29. Rf5+ Ke7 30. Rf7+ Kd6 31. Rxg7 $16)) 28. Rb5 {[%emt 0:01:54]} Rxg6 {[%emt 0:07:48]} 29. Rb8+ {[%emt 0:00:37]} Ke7 {[%emt 0:00:09]} 30. Rb7+ {[%emt 0:00:14]} Kd8 {[%emt 0:00:10] and ...Be5 would now be decisive} 31. Ke2 {[%emt 0:02:21]} 1/2-1/2

[Event "13th Palmanova Festival A 2024"]
[Site "Palmanova"]
[Date "2024.12.28"]
[Round "2.10"]
[White "Gkoumas, Georgios"]
[Black "Candian, Lorenzo"]
[Result "1-0"]
[ECO "C70"]
[WhiteElo "2449"]
[BlackElo "2208"]
[Annotator "TA"]
[PlyCount "99"]
[EventDate "2024.12.27"]
[EventCountry "ITA"]
[SourceTitle "playchess.com"]
[Source "ChessBase"]
[SourceQuality "1"]
[TimeControl "6000+30"]

{[%evp 9,99,39,28,14,25,22,51,21,22,5,5,0,9,16,49,26,118,129,189,0,8,8,14,0,18,13,5,13,14,-23,-17,-35,14,0,-10,-8,37,0,15,0,-4,-31,-28,-34,-28,-55,0,0,0,-15,-8,-114,0,0,0,0,47,55,58,53,74,75,70,64,75,75,82,62,81,83,140,94,222,222,910,872,4670,1800,1479,1410,11128,10741,6549,6266,5977,5964,5925,5916,5692,5600,4586,3562]} 1. e4 {[%emt 0:02:18]} e5 {[%emt 0:07:45]} 2. Nf3 {[%emt 0:00:08]} Nc6 {[%emt 0:00:07]} 3. Bb5 {[%emt 0:00:10][%cal Bf1b5,Bb5a4,Ba4b3][%mdl 32]} a6 {[%emt 0:00:31]} 4. Ba4 {[%emt 0:00:08]} g6 {[%emt 0:00:19]} 5. d4 {[%emt 0:00:33]} b5 {[%emt 0:01:00]} 6. Bb3 {[%emt 0:00:13]} exd4 {[%emt 0:00:18]} 7. a4 {[%emt 0:05:05]} Bb7 {[%emt 0:00:31]} 8. O-O {[%emt 0:04:51]} Bg7 {[%emt 0:13:55]} 9. axb5 {[%emt 0:05:50]} axb5 {[%emt 0:00:11]} 10. Rxa8 {[%emt 0:00:02]} Bxa8 {[%emt 0:00:17]} 11. Na3 {[%emt 0:00:35]} Na5 {[%emt 0:18:12]} 12. Ba2 $1 {[%emt 0:05:22]} Qb8 {[%emt 0:30:29]} (12... b4 $11 {keeps the balance.} 13. Nb5 d6) 13. Nxd4 $16 {[%emt 0:09:20]} b4 {[%emt 0:08:23]} (13... Ne7 $16) 14. Nc4 $2 {[%emt 0:01:35]} ({White has to play} 14. Nab5 $18) 14... Nxc4 $11 {[%emt 0:02:01]} 15. Bxc4 {[%emt 0:00:11]} Nf6 {[%emt 0:01:35]} 16. e5 {[%emt 0:08:55]} Qb7 {[%emt 0:07:09][%csl Ga8][%cal Rb7g2]} 17. Nf3 {[%emt 0:08:10] Active counter play!} (17. exf6 $2 Qxg2#) 17... Nd5 {[%emt 0:01:37]} 18. Qd4 {[%emt 0:04:29] With the idea Rd1.} O-O {[%emt 0:01:52]} 19. Qg4 {[%emt 0:08:53]} Nb6 {[%emt 0:04:05]} 20. Bd3 {[%emt 0:00:27]} Na4 {[%emt 0:04:04]} (20... b3 $15) 21. Re1 {[%emt 0:04:41][%cal Og4c4]} Nc5 {[%emt 0:00:54]} 22. Bc4 {[%emt 0:00:54]} Re8 {[%emt 0:00:45]} 23. Rd1 {[%emt 0:15:28]} Qc8 {[%emt 0:04:44][%cal Oc5e6]} 24. Be3 {[%emt 0:09:43]} Ne6 {[%emt 0:00:55]} 25. h4 {[%emt 0:03:55]} Bxf3 {[%emt 0:00:45]} 26. gxf3 {[%emt 0:00:02]} Bxe5 {[%emt 0:00:12]} 27. f4 {[%emt 0:00:02]} Bxb2 {[%emt 0:00:29]} (27... h5 $6 28. Qf3 Bxb2 29. f5 $11) (27... f5 $1 $15 28. Qg2 Bxb2) 28. f5 $36 {[%emt 0:00:04][%mdl 2048] White is pushing.} Nf8 {[%emt 0:00:13]} 29. fxg6 {[%emt 0:01:14]} hxg6 {[%emt 0:00:01] ...Re5 poses a challenge} 30. h5 {[%emt 0:00:05] [#]} (30. Qf3 $1 $11 Ne6 31. h5) 30... d5 $1 {[%emt 0:00:29]} 31. Qxc8 {[%emt 0:00:07]} Rxc8 {[%emt 0:00:01][%cal Be8c8,Bc8d8,Bd8d1][%mdl 32]} 32. Rxd5 {[%emt 0:00:07]} gxh5 {[%emt 0:00:22]} (32... Kg7 $11 {deserves consideration.}) 33. Rg5+ $1 $14 {[%emt 0:00:19]} Kh7 {[%emt 0:00:26]} (33... Bg7 $2 34. Bd4 (34. Rxh5 Ne6 $11) 34... Ne6 35. Bxe6 (35. Rxh5 $2 Nxd4 36. Rc5 Bf6 $19) 35... fxe6 36. Rxg7+ (36. Bxg7 Kf7 $18) 36... Kf8 37. Rh7 $18) 34. Bxf7 {[%emt 0:00:17]} Rd8 {[%emt 0:02:15]} 35. Bg8+ {[%emt 0:02:59] A strong pair of Bishops.} Kh8 {[%emt 0:00:01]} 36. Bc4 {[%emt 0:00:11]} (36. Rxh5+ $2 Kxg8 37. Rg5+ Kf7 38. Rf5+ Ke6 $19) 36... Rd1+ {[%emt 0:00:58]} 37. Kg2 {[%emt 0:00:12] aiming for Rg8+.} Nd7 {[%emt 0:00:00]} 38. Rxh5+ {[%emt 0:02:37]} Kg7 {[%emt 0:00:08]} 39. Rb5 {[%emt 0:00:40]} c5 {[%emt 0:01:11]} 40. f4 {[%emt 0:01:22]} (40. Bxc5 $6 Nxc5 41. Rxc5 Rd2 $11) (40. Rb7 $142 Kf6 41. Bb5) 40... Bd4 {[%emt 0:00:45]} (40... Rd6 $16) 41. Be2 $18 {[%emt 0:00:27]} Re1 $2 {[%emt 0:00:00]} (41... Bxe3 42. Bxd1 Nf6) 42. Bxd4+ {[%emt 0:00:00]} cxd4 {[%emt 0:00:00][%mdl 4096] Endgame KRB-KRN} 43. Kf2 {[%emt 0:00:00]} Rc1 {[%emt 0:00:00]} 44. Rb7 {[%emt 0:00:00]} ({Inferior is} 44. Rxb4 Nc5 $11 (44... Rxc2 $2 {loses.} 45. Rb7 $18)) 44... Rxc2 {[%emt 0:00:00]} 45. Rxd7+ {[%emt 0:00:00] KRB-KR} Kf6 {[%emt 0:00:00]} 46. Rxd4 {[%emt 0:00:00]} b3 {[%emt 0:00:00]} 47. Ke3 {[%emt 0:00:00]} b2 {[%emt 0:00:00]} 48. Rd6+ {[%emt 0:00:00]} Ke7 {[%emt 0:00:00]} 49. Rb6 {[%emt 0:00:00]} Kd7 {[%emt 0:00:00]} 50. Kd3 {[%emt 0:00:00]} 1-0